bitfinex/quotes_ETHUSD_20250425
["timestamp","ask_amount","ask_price","bid_price","bid_amount"]
[1745553945094,5.013,1763.1,1762.9,5.67229412]
[1745553945242,5.013,1763.1,1763.0,5.67214974]
[1745553945572,5.013,1763.1,1762.9,5.6722862]
[1745553945763,5.59039,1763.1,1762.9,5.6722862]
[1745553946151,5.59039,1763.1,1762.9,5.6722782]
[1745553946354,5.59039,1763.1,1763.0,5.67214974]
[1745553947372,17.80480601,1763.3,1763.0,5.67214974]
[1745553947373,18.63770601,1763.3,1763.0,5.67214974]
[1745553947575,5.013,1763.1,1763.0,5.67214974]
[1745553949261,5.013,1763.1,1762.9,5.67241649]
[1745553949466,5.7838,1763.1,1762.9,5.67241649]
[1745553950399,5.7838,1763.1,1762.8,5.67278834]
[1745553950400,6.36218,1763.1,1762.8,5.67263126]
[1745553950602,6.36218,1763.1,1762.9,5.6724581]
[1745553950952,7.13598601,1763.1,1762.8,5.672681]
[1745553951913,7.13598601,1763.1,1762.8,5.67259509]
[1745553952496,7.13598601,1763.1,1762.8,11.34516845]
[1745553952700,7.13598601,1763.1,1762.8,5.67257336]
[1745553952701,0.7135986,1763.0,1762.8,5.67257336]
[1745553954300,0.7135986,1763.0,1762.3,5.67432538]
[1745553954301,0.7641,1762.8,1762.3,0.7948]
[1745553954506,1.53790601,1762.5,1762.2,5.6745332]
[1745553954799,1.53790601,1762.5,1762.2,5.67470288]
[1745553954958,0.7641,1762.5,1762.4,5.67408079]
[1745553955159,5.7761,1762.7,1762.4,5.6740615]
[1745553955397,5.7761,1762.7,1762.2,0.7948]
[1745553955595,5.7761,1762.7,1762.4,5.67380234]
[1745553955974,5.7761,1762.7,1762.5,5.6736913]
[1745553957102,5.7761,1762.7,1762.6,5.67343696]
[1745553957404,5.012,1762.7,1762.6,5.91577619]
[1745553965493,0.8216,1762.9,1762.7,5.6729825]
[1745553965694,0.8216,1763.1,1763.0,5.67214974]
[1745553966024,5.008,1763.2,1763.0,5.91232415]
[1745553966202,5.008,1763.2,1763.0,5.91211038]
[1745553966734,5.008,1763.2,1763.1,5.67182803]
[1745553967241,5.008,1763.2,1763.1,0.23963336]
[1745553967689,5.008,1763.2,1763.0,5.67209151]
[1745553967894,5.008,1763.2,1763.1,0.23963336]
[1745553968142,0.13535341,1763.5,1763.3,5.67090966]
[1745553968291,0.13535341,1763.5,1763.4,5.6708631]
[1745553968635,0.13535341,1763.5,1763.4,0.23801058]
[1745553969200,0.13535341,1763.5,1763.0,0.7949]
[1745553969201,0.13535341,1763.5,1763.3,5.67118166]
[1745553969503,0.13535341,1763.5,1763.4,0.23801058]
[1745553970169,1.66245942,1763.5,1763.4,0.23801058]
[1745553970633,1.66245942,1763.5,1763.2,5.6713526]
[1745553970828,1.66245942,1763.5,1763.4,0.23634216]
[1745553971033,2.12870536,1763.5,1763.3,0.23688303]
[1745553971223,2.12870536,1763.5,1763.4,0.23634216]
[1745553971537,2.12870536,1763.5,1763.2,5.6713526]
[1745553971839,0.13535341,1763.5,1763.4,5.90720526]
[1745553972006,0.13535341,1763.5,1763.4,5.6708631]
[1745553972213,0.13535341,1763.5,1763.4,5.90720526]
[1745553978962,0.13535341,1763.5,1763.4,6.66620526]
[1745553979117,0.13535341,1763.5,1763.4,7.89992577]
[1745553985356,17.8146,1764.0,1763.4,7.89992577]
[1745553985357,0.2962227,1764.9,1763.6,0.7503]
[1745553985655,0.7893,1764.8,1764.4,5.66751917]
[1745553985814,0.7893,1764.8,1764.5,5.66719907]
[1745553985815,6.56910601,1764.8,1764.5,5.66719907]
[1745553986154,6.56910601,1764.8,1764.5,0.22471946]
[1745553986353,7.22601661,1764.8,1764.5,5.89189692]
[1745553986717,5.7953,1764.8,1764.5,5.89189692]
[1745553986949,5.006,1764.8,1764.7,5.66668555]
[1745553987135,5.8271,1764.8,1764.6,0.22318669]
[1745553987343,5.8271,1764.8,1764.6,5.66680699]
[1745553987550,5.8271,1764.8,1764.7,0.22264662]
[1745553987752,5.006,1764.8,1764.7,5.88933217]
[1745553991155,5.006,1764.8,1764.7,6.66113217]
[1745553991856,5.006,1764.8,1764.7,0.22264662]
[1745553992049,5.5066,1764.8,1764.7,5.88933217]
[1745553992251,5.006,1764.8,1764.7,5.66668555]
[1745553992444,5.006,1764.8,1764.7,5.8888714]
[1745553992677,5.006,1764.8,1764.7,0.22218585]
[1745553993457,5.006,1764.8,1764.7,5.8888714]
[1745553993644,5.006,1764.8,1764.7,0.22218585]
[1745553993954,5.006,1764.8,1764.7,5.8888714]
[1745553994157,1.59520601,1765.1,1764.7,5.8888714]
[1745553994358,0.4021292,1765.3,1764.9,5.6660434]
[1745553994559,0.4021292,1765.3,1764.8,6.48125561]
[1745553994766,0.4021292,1765.3,1765.1,5.66511187]
[1745553994967,0.4021292,1765.3,1765.2,5.66508044]
[1745553995267,5.4021292,1765.3,1765.2,5.66508044]
[1745553995557,5.4021292,1765.3,1765.2,5.87921421]
[1745553996366,0.4021292,1765.3,1765.2,7.03366512]
[1745553996564,0.4021292,1765.3,1765.2,0.21413377]
[1745553996735,0.4021292,1765.3,1765.2,5.66508044]
[1745553996935,0.4021292,1765.3,1765.2,0.21413377]
[1745553997153,0.4021292,1765.3,1765.1,11.33044021]
[1745553997358,0.4021292,1765.3,1765.2,5.87921421]
[1745553998069,0.4021292,1765.3,1765.2,0.21413377]
[1745553998464,0.4021292,1765.3,1765.0,5.66544838]
[1745553998773,0.4021292,1765.3,1765.1,0.19472105]
[1745553998774,1.17593521,1765.3,1765.1,0.19472105]
[1745553998936,0.4021292,1765.3,1765.1,0.19472105]
[1745553999139,4.999,1765.2,1765.1,0.19472105]
[1745553999360,4.999,1765.2,1765.1,5.86012244]
[1745553999675,4.999,1765.2,1765.1,0.19472105]
[1745553999836,4.999,1765.2,1765.1,5.86012244]
[1745554001635,4.999,1765.2,1765.1,0.19472105]
[1745554002569,4.999,1765.2,1765.1,5.86012244]
[1745554004471,4.999,1765.2,1765.1,7.0126808]
[1745554005170,4.999,1765.2,1765.1,7.7837808]
[1745554005671,4.999,1765.2,1765.1,5.86012244]
[1745554006750,4.999,1765.2,1765.1,0.19472105]
[1745554006946,4.999,1765.2,1765.0,5.66552432]
[1745554007257,4.999,1765.2,1765.1,0.19472105]
[1745554007649,4.999,1765.2,1764.9,5.66591116]
[1745554007853,4.999,1765.2,1765.1,0.19472105]
[1745554008047,4.999,1765.2,1765.0,5.86080883]
[1745554008238,4.999,1765.2,1765.1,5.86012244]
[1745554009376,4.999,1765.2,1765.1,0.19472105]
[1745554009771,4.999,1765.2,1764.9,5.66588762]
[1745554009976,4.999,1765.2,1765.1,0.19539203]
[1745554010144,4.999,1765.2,1765.0,5.86154284]
[1745554010547,4.999,1765.2,1765.0,0.19582592]
[1745554010964,4.999,1765.2,1765.0,5.86143566]
[1745554011181,4.999,1765.2,1765.0,0.19582592]
[1745554011589,0.788,1765.1,1764.8,5.66619184]
[1745554011743,0.788,1765.1,1764.8,6.7994624]
[1745554011944,0.788,1765.1,1764.8,6.7994219]
[1745554012254,0.788,1765.1,1764.5,0.8299]
[1745554012452,1.56180601,1765.1,1764.7,5.66661669]
[1745554013354,0.788,1765.1,1764.8,5.66625066]
[1745554013555,0.788,1765.1,1764.8,5.66619961]
[1745554013802,0.788,1765.1,1764.9,5.66581948]
[1745554014495,0.788,1765.1,1764.8,5.6661936]
[1745554014662,1.4440806,1765.1,1764.8,5.6661936]
[1745554015670,1.4440806,1765.1,1764.7,5.6665024]
[1745554015849,1.4440806,1765.1,1764.7,5.66648215]
[1745554016054,1.4440806,1765.1,1764.7,5.66645939]
[1745554016776,1.4440806,1765.1,1764.8,5.66622669]
[1745554017079,0.788,1765.1,1764.9,5.66585424]
[1745554017294,0.788,1765.1,1764.9,0.1970368]
[1745554017642,0.788,1765.1,1764.5,6.49718185]
[1745554017963,0.788,1765.1,1764.7,5.66646421]
[1745554018286,0.788,1765.1,1764.8,5.86374287]
[1745554018649,0.788,1765.1,1764.8,0.19757675]
[1745554019095,1.56180601,1765.1,1764.8,0.19757675]
[1745554019260,1.56180601,1765.1,1764.6,5.66681447]
[1745554019455,2.21788661,1765.1,1764.9,0.1972134]
[1745554019662,2.21788661,1765.1,1764.6,5.66672104]
[1745554019878,2.21788661,1765.1,1765.0,0.19737985]
[1745554020087,2.21788661,1765.1,1764.7,5.66665858]
[1745554020377,2.21788661,1765.1,1764.7,5.66644776]
[1745554020588,2.21788661,1765.1,1764.8,0.19870694]
[1745554021172,2.21788661,1765.1,1764.8,5.86501861]
[1745554021497,5.7924,1765.2,1764.9,5.66591085]
[1745554021884,5.7924,1765.2,1765.0,0.19748581]
[1745554022247,5.7924,1765.2,1765.0,5.86288935]
[1745554022557,4.999,1765.2,1765.1,5.66540139]
[1745554022756,4.999,1765.2,1765.1,0.19694599]
[1745554022978,4.999,1765.2,1764.9,5.66600579]
[1745554023188,4.999,1765.2,1765.1,0.19655746]
[1745554023387,5.53911292,1765.2,1765.0,0.19709729]
[1745554023588,0.8228,1765.1,1764.6,6.42075193]
[1745554023885,0.8228,1765.1,1764.7,5.66655463]
[1745554024183,0.8228,1765.1,1764.8,5.66634321]
[1745554024677,0.8228,1765.1,1764.8,5.66614088]
[1745554024879,4.999,1765.2,1765.0,5.66572237]
[1745554025092,4.999,1765.2,1765.1,5.66540139]
[1745554025884,4.999,1765.2,1765.0,5.66558143]
[1745554026281,4.999,1765.2,1764.9,5.66586445]
[1745554027502,4.999,1765.2,1764.9,5.66581462]
[1745554027988,4.999,1765.2,1764.8,5.66622247]
[1745554028163,4.999,1765.2,1764.9,5.66580963]
[1745554028364,4.999,1765.2,1764.8,5.66619279]
[1745554029694,4.999,1765.2,1764.7,0.7944]
[1745554029892,0.77380601,1764.9,1764.5,6.4391451]
[1745554030242,4.997,1764.8,1764.5,0.7719]
[1745554030407,4.997,1764.8,1764.7,5.66668555]
[1745554030610,4.997,1764.8,1764.7,7.00525411]
[1745554032397,4.997,1764.8,1764.7,6.41644908]
[1745554032615,4.997,1764.8,1764.7,0.18309497]
[1745554032892,4.997,1764.8,1764.7,5.84978052]
[1745554034177,4.997,1764.8,1764.7,6.65998052]
[1745554036120,0.4021292,1765.3,1765.2,5.66508044]
[1745554036323,5.3991292,1765.3,1765.2,6.79812747]
[1745554036506,5.3991292,1765.3,1765.2,5.84529984]
[1745554039316,5.3991292,1765.3,1765.2,0.1802194]
[1745554039617,5.3991292,1765.3,1765.2,5.66508044]
[1745554039814,5.3991292,1765.3,1765.2,5.84529984]
[1745554040520,5.3991292,1765.3,1765.2,0.1802194]
[1745554040888,5.3991292,1765.3,1765.2,5.66508044]
[1745554041081,5.3991292,1765.3,1765.2,5.84529984]
[1745554041485,5.3991292,1765.3,1765.2,0.1802194]
[1745554041829,5.3991292,1765.3,1765.2,5.66508044]
[1745554041992,5.3991292,1765.3,1765.2,5.84529984]
[1745554045121,6.93983521,1765.3,1765.2,0.1802194]
[1745554045419,10.63381873,1765.3,1764.8,5.66622341]
[1745554045624,10.63381873,1765.3,1765.2,0.1794094]
[1745554045796,6.1660292,1765.3,1765.1,5.66521068]
[1745554046120,6.1660292,1765.3,1765.2,0.17849365]
[1745554046630,6.1660292,1765.3,1765.1,5.66521068]
[1745554046834,6.1660292,1765.3,1765.2,0.17891627]
[1745554047004,6.1660292,1765.3,1765.1,5.66521068]
[1745554047500,6.1660292,1765.3,1765.2,0.17891627]
[1745554047899,6.1660292,1765.3,1765.1,5.66521068]
[1745554048120,1.1690292,1765.3,1765.1,5.66521068]
[1745554048323,4.997,1765.2,1765.1,5.66521068]
[1745554048830,4.997,1765.2,1765.1,6.79829937]
[1745554049394,0.4021292,1765.3,1765.2,5.66508044]
[1745554049595,5.3991292,1765.3,1765.2,5.66508044]
[1745554050709,5.3991292,1765.3,1765.1,6.79829937]
[1745554050905,5.3991292,1765.3,1765.1,5.66521068]
[1745554051224,5.3991292,1765.3,1765.0,5.66552549]
[1745554051393,5.3991292,1765.3,1765.0,5.66550029]
[1745554052306,5.3991292,1765.3,1765.1,5.66522905]
[1745554052831,0.4021292,1765.3,1765.1,5.66522905]
[1745554053003,0.4021292,1765.3,1765.2,7.05140335]
[1745554053515,0.7955,1765.1,1764.2,0.7888]
[1745554053715,1.56930601,1764.6,1764.2,0.7888]
[1745554054035,4.994,1764.5,1763.7,0.7888]
[1745554054405,5.76780601,1764.5,1764.0,5.66874397]
[1745554054601,5.76780601,1764.5,1764.1,0.5668744]
[1745554055204,0.77380601,1764.3,1764.1,0.5668744]
[1745554055415,5.76780601,1764.5,1764.0,5.66883865]
[1745554055808,5.76780601,1764.5,1764.1,5.6685927]
[1745554056012,5.76780601,1764.5,1764.0,5.66883865]
[1745554056496,5.76780601,1764.5,1764.0,11.33754178]
[1745554056691,5.76780601,1764.5,1764.1,5.66857186]
[1745554057528,5.76780601,1764.5,1764.0,5.66874298]
[1745554057830,5.76780601,1764.5,1764.0,6.23561728]
[1745554058332,5.76780601,1764.5,1764.1,5.66860138]
[1745554059028,5.76780601,1764.5,1764.0,6.23561728]
[1745554059706,5.76780601,1764.5,1764.0,0.5668743]
[1745554059921,0.77380601,1764.1,1763.7,6.45843989]
[1745554060109,5.76980601,1764.1,1763.8,5.66950075]
[1745554060308,5.76980601,1764.1,1763.6,5.67004998]
[1745554060309,0.77380601,1763.9,1763.6,5.67004998]
[1745554060503,0.77380601,1763.9,1763.4,1.23372051]
[1745554060504,0.77380601,1763.7,1763.4,6.90447738]
[1745554060705,4.996,1763.6,1763.4,5.67075687]
[1745554060942,4.996,1763.6,1763.3,0.8024]
[1745554061095,0.77380601,1763.5,1763.2,5.67136659]
[1745554062035,0.77380601,1763.3,1763.1,0.8024]
[1745554062221,4.996,1763.2,1763.0,5.67202688]
[1745554062621,4.996,1763.2,1763.1,5.67182803]
[1745554066352,4.996,1763.2,1763.0,5.67188909]
[1745554066512,5.7585,1763.2,1762.5,6.48791814]
[1745554066713,0.77380601,1763.1,1762.8,5.67252169]
[1745554066941,0.77380601,1763.1,1762.8,5.67253695]
[1745554067646,0.77380601,1763.1,1762.9,5.67245]
[1745554068031,5.41549417,1763.2,1762.7,6.4487151]
[1745554068234,4.998,1763.2,1763.1,5.67182803]
[1745554068434,4.998,1763.2,1763.0,5.67189695]
[1745554069144,5.77180601,1763.2,1763.0,5.67189695]
[1745554070159,0.8145,1763.1,1763.0,5.67214974]
[1745554070948,4.998,1763.2,1763.1,5.67182803]
[1745554071717,5.77180601,1763.2,1763.0,5.67198142]
[1745554071938,6.19257715,1763.2,1763.0,5.67198142]
[1745554072128,6.19257715,1763.2,1763.1,5.67182803]
[1745554073847,5.41877114,1763.2,1763.1,5.67182803]
[1745554075285,17.8094,1763.5,1763.1,5.67182803]
[1745554075552,17.017,1763.5,1763.4,5.6708631]
[1745554075726,22.78980601,1763.5,1763.2,5.67136767]
[1745554075932,22.78980601,1763.5,1763.3,5.67117689]
[1745554076321,22.78980601,1763.5,1763.3,5.67093436]
[1745554076656,0.803,1764.0,1763.4,0.8125]
[1745554076958,1.57680601,1764.2,1763.7,5.66964547]
[1745554077153,0.77380601,1764.0,1763.8,5.66955662]
[1745554077356,0.77380601,1764.0,1763.8,0.12803823]
[1745554077556,4.999,1763.9,1763.8,0.12803823]
[1745554077772,4.999,1763.9,1763.8,5.66957704]
[1745554077925,4.999,1763.9,1763.8,5.79761527]
[1745554078554,6.78071822,1763.9,1763.8,0.12803823]
[1745554078955,6.78071822,1763.9,1763.6,11.33988734]
[1745554079166,5.7731,1763.9,1763.8,0.126036]
[1745554079341,5.7731,1763.9,1763.7,5.79626238]
[1745554079548,5.7731,1763.9,1763.8,0.126036]
[1745554080041,5.7731,1763.9,1763.8,5.79561304]
[1745554080244,4.999,1763.9,1763.8,0.126036]
[1745554080548,4.999,1763.9,1763.8,5.79561304]
[1745554080755,4.999,1763.9,1763.8,5.66957704]
[1745554081071,4.999,1763.9,1763.8,5.79561304]
[1745554082972,4.999,1763.9,1763.8,0.126036]
[1745554083272,9.3623806,1763.9,1763.5,5.67039479]
[1745554083565,0.77380601,1763.8,1763.6,5.67003292]
[1745554083740,0.77380601,1763.8,1763.6,5.78094386]
[1745554084677,0.77380601,1763.8,1763.6,0.11091094]
[1745554085041,0.77380601,1763.8,1763.6,5.78112433]
[1745554085847,0.77380601,1763.8,1763.6,0.11091094]
[1745554086171,0.77380601,1763.8,1763.6,5.78107498]
[1745554086578,0.7619,1763.7,1763.6,0.11091094]
[1745554086779,1.2154706,1763.7,1763.6,0.11091094]
[1745554086956,1.2154706,1763.7,1763.4,5.67062456]
[1745554087148,1.2154706,1763.7,1763.6,0.13347151]
[1745554087347,1.2154706,1763.7,1763.5,0.111767]
[1745554087596,1.2154706,1763.7,1763.6,0.11122626]
[1745554087944,1.2154706,1763.7,1763.3,5.67107173]
[1745554088149,1.2154706,1763.7,1763.6,0.11189204]
[1745554088349,0.77380601,1763.6,1763.3,5.67107173]
[1745554088648,5.062,1763.5,1763.4,5.6708631]
[1745554089576,5.062,1763.5,1763.3,5.67093737]
[1745554090388,5.062,1763.5,1763.4,5.6708631]
[1745554092299,0.7664,1763.8,1763.4,2.04482887]
[1745554092599,5.063,1763.7,1763.6,5.67022]
[1745554092895,5.063,1763.7,1763.6,5.78228727]
[1745554094264,5.063,1763.7,1763.6,0.11206727]
[1745554094461,7.14900601,1763.7,1763.6,0.11206727]
[1745554095008,7.14900601,1763.7,1763.4,5.67063447]
[1745554095206,7.14900601,1763.7,1763.6,0.11266273]
[1745554095382,7.14900601,1763.7,1763.5,5.78354328]
[1745554095585,6.64270601,1763.7,1763.6,0.11266273]
[1745554096079,9.64270601,1763.7,1763.6,0.11266273]
[1745554096279,9.64270601,1763.7,1763.4,5.67060475]
[1745554096676,8.063,1763.7,1763.5,5.78362274]
[1745554097265,8.063,1763.7,1763.5,0.11320348]
[1745554097485,8.9466806,1763.7,1763.5,0.11320348]
[1745554097880,0.77380601,1763.6,1763.5,0.11320348]
[1745554098208,1.60140601,1763.6,1763.3,5.67102976]
[1745554098381,1.60140601,1763.6,1763.4,0.11430491]
[1745554098782,1.60140601,1763.6,1763.2,11.34262433]
[1745554098983,0.77380601,1763.4,1763.3,0.115021]
[1745554099997,0.77380601,1763.4,1763.1,5.67162771]
[1745554100206,5.063,1763.3,1763.2,5.7870633]
[1745554103011,5.063,1763.3,1763.2,0.11556192]
[1745554103174,5.063,1763.3,1763.1,11.34336052]
[1745554103375,5.063,1763.3,1763.2,0.11556192]
[1745554103574,5.063,1763.3,1763.1,11.34319152]
[1745554103773,5.063,1763.3,1763.2,0.11556192]
[1745554103975,5.063,1763.3,1763.1,11.34316726]
[1745554104176,5.063,1763.3,1763.2,5.78706827]
[1745554104425,5.063,1763.3,1763.2,6.54626827]
[1745554104579,5.063,1763.3,1763.2,7.76805279]
[1745554104779,17.024,1763.7,1763.5,5.67054153]
[1745554105013,5.063,1763.6,1763.5,5.67054153]
[1745554105870,5.063,1763.6,1763.4,5.67074202]
[1745554106109,5.83680601,1763.6,1763.4,5.67062712]
[1745554106293,5.83680601,1763.6,1763.3,5.6710131]
[1745554106294,7.3455108,1763.6,1763.3,5.6710131]
[1745554106474,7.3455108,1763.6,1763.2,6.43067284]
[1745554106475,5.83680601,1763.6,1763.2,0.7592]
[1745554106676,5.83680601,1763.6,1763.3,5.67092023]
[1745554107118,5.83680601,1763.6,1763.4,5.67080528]
[1745554107292,5.83680601,1763.6,1763.4,0.13855381]
[1745554107480,0.5836806,1763.5,1763.4,0.13855381]
[1745554108017,5.83680601,1763.6,1763.4,5.80924857]
[1745554109397,5.83680601,1763.6,1763.4,0.13855381]
[1745554109597,5.83680601,1763.6,1763.4,5.80928679]
[1745554110044,6.26800238,1763.6,1763.4,5.80928679]
[1745554110200,6.26800238,1763.6,1763.4,0.13855381]
[1745554112030,6.26800238,1763.6,1763.4,5.80937869]
[1745554112826,5.063,1763.6,1763.5,5.67054153]
[1745554113060,17.024,1763.7,1763.6,5.67022]
[1745554113225,5.004,1763.8,1763.7,5.6698985]
[1745554113532,5.004,1763.8,1763.7,6.9179599]
[1745554113916,5.004,1763.8,1763.7,7.7078599]
[1745554118753,5.004,1764.1,1764.0,6.42973424]
[1745554119042,5.004,1764.1,1764.0,6.55964398]
[1745554119242,5.004,1764.1,1764.0,7.78252207]
[1745554121109,22.028,1764.4,1764.3,5.66797029]
[1745554121324,22.028,1764.4,1764.3,6.41907029]
[1745554121526,1.55710601,1764.8,1764.7,5.66668555]
[1745554121742,6.56010601,1764.8,1764.6,5.66682267]
[1745554121908,6.9751747,1764.8,1764.6,5.66682267]
[1745554122113,7.67269217,1764.8,1764.6,5.66682267]
[1745554122314,7.25762348,1764.8,1764.6,5.66682267]
[1745554123251,6.56010601,1764.8,1764.6,11.33360817]
[1745554123743,5.003,1764.8,1764.7,5.66668555]
[1745554128349,4.94686323,1764.8,1764.7,5.66668555]
[1745554128546,4.94686323,1764.8,1764.7,5.66498452]
[1745554128758,4.94686323,1764.8,1764.6,5.6668314]
[1745554130352,4.94686323,1764.8,1764.7,5.66668555]
[1745554131550,4.94686323,1764.8,1764.6,5.66695976]
[1745554132720,4.94686323,1764.8,1764.7,5.66668555]
[1745554136233,4.94686323,1764.8,1764.6,11.33379207]
[1745554136433,4.94686323,1764.8,1764.6,5.66682125]
[1745554136837,4.94686323,1764.8,1764.7,5.66668555]
[1745554139857,5.72066924,1764.8,1764.7,5.66668555]
[1745554140857,5.72066924,1764.8,1764.6,5.66680713]
[1745554141060,0.8083,1764.7,1764.1,0.7534]
[1745554141362,0.77380601,1764.5,1764.3,5.66771178]
[1745554141565,5.001,1764.4,1764.3,5.66771178]
[1745554142572,5.001,1764.4,1764.3,6.48741178]
[1745554144448,5.76980601,1764.8,1764.5,5.66705381]
[1745554144671,5.76980601,1764.8,1764.6,5.66698171]
[1745554144832,5.76980601,1764.8,1764.5,5.66705381]
[1745554145531,5.76980601,1764.8,1764.5,11.33415572]
[1745554145781,5.76980601,1764.8,1764.5,5.66705381]
[1745554146176,5.76980601,1764.8,1764.4,5.66745633]
[1745554147272,0.77380601,1764.6,1764.3,5.66776324]
[1745554148131,0.77380601,1764.4,1764.0,0.7823]
[1745554148337,4.996,1764.3,1763.7,6.80374977]
[1745554148662,0.77380601,1764.2,1763.9,5.66902]
[1745554149675,1.55280601,1764.2,1763.9,5.66905264]
[1745554149972,0.779,1764.2,1764.0,5.66871117]
[1745554151447,0.779,1764.2,1763.9,5.66907233]
[1745554151637,1.20790189,1764.2,1763.9,5.66907233]
[1745554152040,1.20790189,1764.2,1764.0,5.66891508]
[1745554152257,0.42890189,1764.2,1764.0,5.66891508]
[1745554152477,4.996,1764.3,1764.0,5.66891508]
[1745554153768,4.996,1764.3,1764.0,5.6687079]
[1745554154084,4.996,1764.3,1764.0,6.23557869]
[1745554154464,4.996,1764.3,1764.1,5.66844001]
[1745554155264,0.42108352,1764.4,1764.2,5.66816481]
[1745554155569,4.996,1764.3,1764.2,5.66816398]
[1745554155775,0.8166,1764.6,1764.3,5.66773144]
[1745554155956,4.996,1764.5,1764.3,5.66773144]
[1745554156454,4.996,1764.5,1764.3,5.66771314]
[1745554157598,4.996,1764.5,1764.2,5.66809146]
[1745554158579,5.4226332,1764.5,1764.2,5.66809146]
[1745554159385,5.4226332,1764.5,1764.2,11.33613905]
[1745554159686,5.4226332,1764.5,1764.3,5.66791248]
[1745554160788,5.4226332,1764.5,1764.2,5.66815323]
[1745554161286,6.19643921,1764.5,1764.3,5.66796814]
[1745554162592,5.4226332,1764.5,1764.3,5.66796814]
[1745554163788,5.4226332,1764.5,1764.2,5.66815323]
[1745554163789,5.4226332,1764.5,1764.2,5.66808405]
[1745554163958,5.4226332,1764.5,1764.3,5.66791064]
[1745554165071,5.4226332,1764.5,1764.4,5.66764905]
[1745554167896,4.996,1764.5,1764.4,5.66764905]
[1745554168101,4.996,1764.5,1764.4,6.80120354]
[1745554169298,4.996,1764.5,1764.4,5.66764905]
[1745554169667,4.996,1764.5,1764.3,5.66777427]
[1745554169868,4.996,1764.5,1764.4,5.66764905]
[1745554173303,4.996,1764.5,1764.4,6.42514905]
[1745554176510,4.996,1764.5,1764.4,5.66764905]
[1745554182687,0.77380601,1764.9,1764.8,5.66636446]
[1745554182891,4.995,1764.9,1764.5,5.66732785]
[1745554183087,4.995,1764.9,1764.6,5.66700668]
[1745554183286,4.995,1764.9,1764.7,5.66637088]
[1745554183511,5.76880601,1764.9,1764.6,5.66684099]
[1745554183716,0.8317,1764.7,1764.6,5.66684099]
[1745554186698,1.76374264,1764.8,1764.7,5.66668555]
[1745554187426,4.995,1764.9,1764.8,5.66636446]
[1745554188430,4.995,1764.9,1764.7,5.66649134]
[1745554188940,0.77380601,1764.8,1764.5,5.66719576]
[1745554189143,0.7619,1764.7,1764.4,5.66743396]
[1745554189342,0.7619,1764.7,1764.5,5.66731935]
[1745554189703,0.7619,1764.7,1764.4,5.6675342]
[1745554190006,0.7619,1764.7,1764.5,5.66732706]
[1745554190212,0.7619,1764.7,1764.5,5.66707467]
[1745554190634,0.7619,1764.7,1764.5,11.33419106]
[1745554190838,0.7619,1764.7,1764.5,5.66707467]
[1745554191633,0.7619,1764.7,1764.6,5.66700668]
[1745554192207,0.7619,1764.7,1764.5,11.33418011]
[1745554192606,0.7619,1764.7,1764.6,5.66700668]
[1745554193832,6.98586232,1764.9,1764.7,5.66668555]
[1745554194025,7.68444855,1764.9,1764.7,5.66668555]
[1745554196709,7.68444855,1764.9,1764.6,5.66679895]
[1745554197445,7.68444855,1764.9,1764.6,5.66676419]
[1745554199207,0.77380601,1764.7,1764.3,5.66789537]
[1745554199412,0.7651,1764.6,1764.2,5.6681051]
[1745554199645,4.995,1764.5,1764.3,5.66784531]
[1745554201041,4.995,1764.5,1764.3,5.66774875]
[1745554201221,4.995,1764.5,1764.4,6.45764905]
[1745554204947,4.995,1764.5,1764.4,0.79]
[1745554205246,4.995,1764.5,1764.3,5.66774875]
[1745554205247,4.995,1764.5,1764.3,5.66788883]
[1745554205617,5.7458,1764.5,1764.1,5.66844659]
[1745554205823,5.7458,1764.5,1764.2,11.33622377]
[1745554206022,5.7458,1764.5,1764.3,5.66796216]
[1745554208052,4.995,1764.5,1764.4,5.66764905]
[1745554208222,4.995,1764.5,1764.4,6.42834905]
[1745554215133,5.28906106,1764.8,1764.7,6.48878555]
[1745554215431,0.29606106,1764.8,1764.7,6.48878555]
[1745554215633,4.993,1764.9,1764.8,5.66636446]
[1745554218369,4.993,1764.9,1764.8,5.66636446]
[1745554223245,4.993,1764.9,1764.8,6.42546446]
[1745554226072,4.993,1764.9,1764.8,5.66636446]
[1745554231964,4.993,1764.9,1764.8,5.90938838]
[1745554234956,4.993,1764.9,1764.8,6.71838838]
[1745554235156,4.993,1764.9,1764.8,7.95689577]
[1745554238303,4.993,1764.9,1764.8,5.90938838]
[1745554247204,4.993,1764.9,1764.8,0.24302392]
[1745554247772,5.8052,1764.9,1764.8,0.24302392]
[1745554247992,5.8052,1764.9,1764.5,5.66710164]
[1745554248197,6.10121623,1764.9,1764.6,5.89005697]
[1745554248398,0.61012162,1764.8,1764.6,5.89005697]
[1745554248588,6.10121623,1764.9,1764.6,5.89005697]
[1745554250584,6.10121623,1764.9,1764.6,5.88995065]
[1745554252302,6.10121623,1764.9,1764.7,5.66656052]
[1745554252682,6.10121623,1764.9,1764.8,0.22215722]
[1745554253192,6.10121623,1764.9,1764.6,5.66687381]
[1745554253393,6.10121623,1764.9,1764.7,0.22347525]
[1745554254670,6.71133785,1764.9,1764.7,0.22347525]
[1745554255197,4.99,1764.8,1764.7,0.22347525]
[1745554256012,4.99,1764.8,1764.5,5.66715826]
[1745554256308,4.99,1764.8,1764.6,0.22405854]
[1745554257316,4.99,1764.8,1764.5,5.66729679]
[1745554257479,4.99,1764.8,1764.7,0.22361523]
[1745554257672,6.02987899,1764.8,1764.7,0.22361523]
[1745554258075,6.02987899,1764.8,1764.5,5.66712388]
[1745554258275,6.02987899,1764.8,1764.6,0.22416353]
[1745554258877,6.02987899,1764.8,1764.6,5.89107795]
[1745554260426,6.02987899,1764.8,1764.6,0.22416353]
[1745554261414,6.02987899,1764.8,1764.6,5.89113389]
[1745554261619,5.42005737,1764.8,1764.6,5.89113389]
[1745554262736,5.42005737,1764.8,1764.6,0.22416353]
[1745554263233,5.42005737,1764.8,1764.4,11.33481805]
[1745554263448,5.42005737,1764.8,1764.5,5.8929652]
[1745554268153,5.42005737,1764.8,1764.5,0.22565665]
[1745554268316,1.29750574,1764.7,1764.5,0.22565665]
[1745554268641,1.59357711,1764.7,1764.6,0.22328116]
[1745554268868,1.59357711,1764.7,1764.3,5.66771532]
[1745554269010,2.36738312,1764.7,1764.4,0.22493794]
[1745554269209,0.7555,1764.6,1764.1,5.66848912]
[1745554269440,0.7555,1764.6,1764.2,0.22662997]
[1745554269662,0.7555,1764.4,1764.0,0.02271379]